[Event "*** Titled Tuesday Blitz"]
[Site "Chess.com"]
[Date "2020.12.01"]
[Round "4"]
[White "Fh2411"]
[Black "DarZay"]
[Result "1/2-1/2"]
[WhiteElo "2553"]
[BlackElo "2166"]
[TimeControl "180+1"]
[EndTime "10:38:46 PST"]
[Termination "Game drawn by agreement"]

1. d4 {[%clk 0:03:00.9]} 1... d5 {[%clk 0:02:59.7]} 2. Nf3 {[%clk 0:03:01.2]}
2... e6 {[%clk 0:02:59]} 3. Bf4 {[%clk 0:03:01.4]} 3... Nf6 {[%clk 0:02:57.9]}
4. e3 {[%clk 0:03:01.8]} 4... Be7 {[%clk 0:02:54.4]} 5. Nbd2 {[%clk 0:03:01.4]}
5... O-O {[%clk 0:02:54]} 6. Bd3 {[%clk 0:03:01.2]} 6... c5 {[%clk 0:02:53.2]}
7. c3 {[%clk 0:03:01]} 7... c4 {[%clk 0:02:52.7]} 8. Bc2 {[%clk 0:03:00.5]} 8...
Nc6 {[%clk 0:02:52.3]} 9. Ne5 {[%clk 0:02:41.6]} 9... Bd6 {[%clk 0:02:45.8]} 10.
Bg3 {[%clk 0:02:39.3]} 10... Ne8 {[%clk 0:02:40.4]} 11. Qh5 {[%clk 0:02:32.4]}
11... f5 {[%clk 0:02:19.6]} 12. Bh4 {[%clk 0:02:30.9]} 12... Be7 {[%clk
0:02:14.1]} 13. Bxe7 {[%clk 0:02:24.6]} 13... Nxe7 {[%clk 0:02:10.6]} 14. g4
{[%clk 0:02:16.5]} 14... g6 {[%clk 0:01:52.7]} 15. Qh3 {[%clk 0:02:15.6]} 15...
Ng7 {[%clk 0:01:49.6]} 16. f3 {[%clk 0:02:04.8]} 16... Nc6 {[%clk 0:01:48.1]}
17. Qg3 {[%clk 0:01:55.6]} 17... f4 {[%clk 0:01:24.9]} 18. exf4 {[%clk
0:01:52.3]} 18... Qf6 {[%clk 0:01:24.4]} 19. Kf2 {[%clk 0:01:03.3]} 19... Qxf4
{[%clk 0:01:21.6]} 20. Qxf4 {[%clk 0:01:02.6]} 20... Rxf4 {[%clk 0:01:20.4]} 21.
Kg3 {[%clk 0:01:03.3]} 21... Rf8 {[%clk 0:01:11.9]} 22. f4 {[%clk 0:01:02.2]}
22... Nxe5 {[%clk 0:01:11.3]} 23. fxe5 {[%clk 0:01:00.7]} 23... Bd7 {[%clk
0:01:08.9]} 24. Rhf1 {[%clk 0:00:53.9]} 24... Rxf1 {[%clk 0:01:07.8]} 25. Rxf1
{[%clk 0:00:52.8]} 25... Rf8 {[%clk 0:01:07.6]} 26. Rf6 {[%clk 0:00:51.7]} 26...
Ne8 {[%clk 0:00:59.4]} 27. Rxf8+ {[%clk 0:00:49.1]} 27... Kxf8 {[%clk
0:00:58.4]} 28. Nf3 {[%clk 0:00:49.7]} 28... Kg7 {[%clk 0:00:52]} 29. h4 {[%clk
0:00:49]} 29... h6 {[%clk 0:00:49.2]} 30. Kf4 {[%clk 0:00:48.3]} 30... Nc7
{[%clk 0:00:48.2]} 31. Ne1 {[%clk 0:00:39.8]} 31... b5 {[%clk 0:00:47.5]} 32.
Ng2 {[%clk 0:00:36.4]} 32... a5 {[%clk 0:00:46.2]} 33. a3 {[%clk 0:00:33.1]}
33... a4 {[%clk 0:00:33.3]} 34. Kg3 {[%clk 0:00:30.7]} 34... Be8 {[%clk
0:00:32.3]} 35. Nf4 {[%clk 0:00:26.8]} 35... Bf7 {[%clk 0:00:26.9]} 36. Nh3
{[%clk 0:00:20.5]} 36... Be8 {[%clk 0:00:26.1]} 37. g5 {[%clk 0:00:20.8]} 37...
h5 {[%clk 0:00:24.3]} 38. Nf4 {[%clk 0:00:20]} 38... Bf7 {[%clk 0:00:24.4]} 39.
Ne2 {[%clk 0:00:18.8]} 39... Be8 {[%clk 0:00:24.3]} 40. Nc1 {[%clk 0:00:19.7]}
40... Bf7 {[%clk 0:00:24.3]} 41. Na2 {[%clk 0:00:20.6]} 41... Be8 {[%clk
0:00:24.2]} 42. Nb4 {[%clk 0:00:20.4]} 42... Kf8 {[%clk 0:00:20.4]} 43. Kf4
{[%clk 0:00:20.9]} 43... Ke7 {[%clk 0:00:19.6]} 44. Bd1 {[%clk 0:00:21.3]} 44...
Kf8 {[%clk 0:00:18.1]} 45. Bc2 {[%clk 0:00:21]} 45... Kg7 {[%clk 0:00:18]} 46.
Bd1 {[%clk 0:00:18.1]} 46... Kf8 {[%clk 0:00:18]} 47. Be2 {[%clk 0:00:16.5]}
1/2-1/2

[Event "*** Titled Tuesday Blitz"]
[Site "Chess.com"]
[Date "2020.12.01"]
[Round "4"]
[White "Chesswizard_2007"]
[Black "SantoBlue"]
[Result "1-0"]
[WhiteElo "2689"]
[BlackElo "2877"]
[TimeControl "180+1"]
[EndTime "10:38:52 PST"]
[Termination "Chesswizard_2007 won by resignation"]

1. d4 {[%clk 0:03:00.9]} 1... Nf6 {[%clk 0:02:53.8]} 2. c4 {[%clk 0:03:00.7]}
2... e6 {[%clk 0:02:51.7]} 3. Nf3 {[%clk 0:02:59.1]} 3... d5 {[%clk 0:02:51.7]}
4. g3 {[%clk 0:02:56.5]} 4... Bb4+ {[%clk 0:02:49]} 5. Bd2 {[%clk 0:02:54.1]}
5... Bxd2+ {[%clk 0:02:47.2]} 6. Qxd2 {[%clk 0:02:53.3]} 6... O-O {[%clk
0:02:47.9]} 7. Nc3 {[%clk 0:02:52.8]} 7... c6 {[%clk 0:02:48.2]} 8. b3 {[%clk
0:02:51.7]} 8... b6 {[%clk 0:02:47.7]} 9. Bg2 {[%clk 0:02:51.4]} 9... Nbd7
{[%clk 0:02:46.6]} 10. O-O {[%clk 0:02:50.8]} 10... Ba6 {[%clk 0:02:46.7]} 11.
cxd5 {[%clk 0:02:15.9]} 11... cxd5 {[%clk 0:02:43.8]} 12. Rac1 {[%clk
0:02:16.3]} 12... Qe7 {[%clk 0:02:37.5]} 13. Rfe1 {[%clk 0:02:16.2]} 13... Rfc8
{[%clk 0:02:34.4]} 14. e3 {[%clk 0:02:16.2]} 14... Ne4 {[%clk 0:02:21.6]} 15.
Nxe4 {[%clk 0:02:08.9]} 15... dxe4 {[%clk 0:02:22.5]} 16. Ne5 {[%clk 0:02:09.7]}
16... Nxe5 {[%clk 0:02:21.8]} 17. dxe5 {[%clk 0:02:10.6]} 17... Bd3 {[%clk
0:02:17.8]} 18. f4 {[%clk 0:01:59.6]} 18... Rd8 {[%clk 0:02:01.5]} 19. Qf2
{[%clk 0:01:56.7]} 19... h5 {[%clk 0:02:00.7]} 20. h3 {[%clk 0:01:54.5]} 20...
a5 {[%clk 0:01:58.1]} 21. Red1 {[%clk 0:01:52]} 21... Qb4 {[%clk 0:01:42.4]} 22.
Rd2 {[%clk 0:01:46.7]} 22... a4 {[%clk 0:01:29.7]} 23. bxa4 {[%clk 0:01:34]}
23... Qxa4 {[%clk 0:01:29.8]} 24. Rcd1 {[%clk 0:01:31]} 24... Rac8 {[%clk
0:01:26.5]} 25. g4 {[%clk 0:01:21.4]} 25... hxg4 {[%clk 0:01:17.1]} 26. hxg4
{[%clk 0:01:20.1]} 26... Rc3 {[%clk 0:01:12.5]} 27. f5 {[%clk 0:01:16.1]} 27...
Rdc8 {[%clk 0:01:00.9]} 28. f6 {[%clk 0:01:13.1]} 28... Rc1 {[%clk 0:00:58.9]}
29. Rxc1 {[%clk 0:01:11.7]} 29... Rxc1+ {[%clk 0:00:59.8]} 30. Kh2 {[%clk
0:01:12.5]} 30... g5 {[%clk 0:00:42]} 31. Qg3 {[%clk 0:00:47.5]} 31... Rc2
{[%clk 0:00:34.1]} 32. Qh3 {[%clk 0:00:18.1]} 32... Qe8 {[%clk 0:00:04.3]} 33.
Qh6 {[%clk 0:00:15.8]} 33... Qf8 {[%clk 0:00:04.6]} 34. Qxg5+ {[%clk 0:00:15.2]}
34... Kh7 {[%clk 0:00:05.3]} 35. Rxc2 {[%clk 0:00:15.6]} 35... Bxc2 {[%clk
0:00:04.9]} 36. Kg3 {[%clk 0:00:12.4]} 36... Qh6 {[%clk 0:00:02.7]} 37. Qxh6+
{[%clk 0:00:12.6]} 37... Kxh6 {[%clk 0:00:03.6]} 38. Kf4 {[%clk 0:00:13.5]}
38... Bb1 {[%clk 0:00:03.1]} 39. a3 {[%clk 0:00:13.3]} 39... Bc2 {[%clk
0:00:03.1]} 40. Bxe4 {[%clk 0:00:11.8]} 40... Bd1 {[%clk 0:00:02.1]} 41. g5+
{[%clk 0:00:12]} 41... Kh5 {[%clk 0:00:02.6]} 42. g6 {[%clk 0:00:12.6]} 1-0

[Event "*** Titled Tuesday Blitz"]
[Site "Chess.com"]
[Date "2020.12.01"]
[Round "4"]
[White "IngOscarArdila"]
[Black "Triumphmate"]
[Result "1-0"]
[WhiteElo "2193"]
[BlackElo "2391"]
[TimeControl "180+1"]
[EndTime "10:38:53 PST"]
[Termination "IngOscarArdila won by resignation"]

1. d4 {[%clk 0:03:00.9]} 1... d5 {[%clk 0:02:55.9]} 2. c4 {[%clk 0:03:00.9]}
2... e6 {[%clk 0:02:56.1]} 3. Nc3 {[%clk 0:02:59.2]} 3... Be7 {[%clk 0:02:56.2]}
4. Nf3 {[%clk 0:02:58.8]} 4... c6 {[%clk 0:02:52.2]} 5. e3 {[%clk 0:02:55.4]}
5... f5 {[%clk 0:02:52.7]} 6. g3 {[%clk 0:02:53.7]} 6... Nf6 {[%clk 0:02:52.9]}
7. cxd5 {[%clk 0:02:53.2]} 7... exd5 {[%clk 0:02:52.7]} 8. Bg2 {[%clk
0:02:53.7]} 8... O-O {[%clk 0:02:53.2]} 9. O-O {[%clk 0:02:52.9]} 9... Be6
{[%clk 0:02:53.1]} 10. b3 {[%clk 0:02:48.7]} 10... Ne4 {[%clk 0:02:53.1]} 11.
Bb2 {[%clk 0:02:48.2]} 11... Nd7 {[%clk 0:02:52.3]} 12. Rc1 {[%clk 0:02:47.7]}
12... Rc8 {[%clk 0:02:50.7]} 13. Ne2 {[%clk 0:02:47.4]} 13... h6 {[%clk
0:02:46.6]} 14. Nf4 {[%clk 0:02:46.8]} 14... Bf7 {[%clk 0:02:44.7]} 15. Ne5
{[%clk 0:02:47]} 15... Bf6 {[%clk 0:02:30.6]} 16. Nfd3 {[%clk 0:02:20.5]} 16...
Re8 {[%clk 0:02:21.9]} 17. Nxd7 {[%clk 0:02:13.5]} 17... Qxd7 {[%clk 0:02:22.8]}
18. Nc5 {[%clk 0:02:07.3]} 18... Nxc5 {[%clk 0:02:22.2]} 19. Rxc5 {[%clk
0:02:05.6]} 19... b6 {[%clk 0:02:22.8]} 20. Rc2 {[%clk 0:02:04.3]} 20... c5
{[%clk 0:02:23.4]} 21. dxc5 {[%clk 0:02:03.7]} 21... Bxb2 {[%clk 0:02:23.1]} 22.
Rxb2 {[%clk 0:02:02]} 22... bxc5 {[%clk 0:02:23.8]} 23. Rd2 {[%clk 0:02:01.7]}
23... Rcd8 {[%clk 0:02:22.8]} 24. Qc2 {[%clk 0:01:57.4]} 24... Qb5 {[%clk
0:02:18.6]} 25. Qxf5 {[%clk 0:01:53.6]} 25... Be6 {[%clk 0:02:15.2]} 26. Qg6
{[%clk 0:01:50.6]} 26... Bf7 {[%clk 0:02:13.7]} 27. Qg4 {[%clk 0:01:46.7]} 27...
d4 {[%clk 0:02:12.4]} 28. exd4 {[%clk 0:01:45.2]} 28... cxd4 {[%clk 0:02:10]}
29. Rxd4 {[%clk 0:01:37.6]} 29... Rxd4 {[%clk 0:01:59.4]} 30. Qxd4 {[%clk
0:01:37.3]} 30... Qe2 {[%clk 0:01:58.2]} 31. Bd5 {[%clk 0:01:18]} 31... Bxd5
{[%clk 0:01:51.2]} 32. Qxd5+ {[%clk 0:01:17.9]} 32... Kh8 {[%clk 0:01:52.1]} 33.
Qf7 {[%clk 0:01:08.5]} 33... a6 {[%clk 0:01:51.2]} 34. Kg2 {[%clk 0:01:03.7]}
34... Qe4+ {[%clk 0:01:49.9]} 35. Qf3 {[%clk 0:01:03.6]} 35... Qc2 {[%clk
0:01:49.5]} 36. a4 {[%clk 0:00:50.5]} 36... Qc5 {[%clk 0:01:46]} 37. Rd1 {[%clk
0:00:46.4]} 37... Rf8 {[%clk 0:01:46.2]} 38. Qe3 {[%clk 0:00:35.5]} 38... Qc6+
{[%clk 0:01:46.1]} 39. Kg1 {[%clk 0:00:34.4]} 39... Re8 {[%clk 0:01:43.8]} 40.
Qd3 {[%clk 0:00:34.6]} 40... Qb7 {[%clk 0:01:38.5]} 41. Qd7 {[%clk 0:00:33.1]}
41... Re1+ {[%clk 0:01:38.3]} 42. Rxe1 {[%clk 0:00:28.4]} 42... Qxd7 {[%clk
0:01:39.2]} 43. Re3 {[%clk 0:00:28.6]} 43... a5 {[%clk 0:01:37.4]} 44. Kg2
{[%clk 0:00:28.4]} 44... Kh7 {[%clk 0:01:37.3]} 45. h3 {[%clk 0:00:28.6]} 45...
h5 {[%clk 0:01:37.6]} 46. Kf3 {[%clk 0:00:26.1]} 46... Qxh3 {[%clk 0:01:36.4]}
47. Ke2 {[%clk 0:00:26]} 47... Qg4+ {[%clk 0:01:35.8]} 48. Kd2 {[%clk
0:00:26.1]} 48... Qf5 {[%clk 0:01:32.1]} 49. Ke2 {[%clk 0:00:26.1]} 49... Qc2+
{[%clk 0:01:31.8]} 50. Kf3 {[%clk 0:00:26.2]} 50... g5 {[%clk 0:01:32.3]} 51.
Kg2 {[%clk 0:00:26]} 51... Kg6 {[%clk 0:01:32.5]} 52. Kf3 {[%clk 0:00:26.1]}
52... g4+ {[%clk 0:01:32.7]} 53. Kg2 {[%clk 0:00:26.4]} 53... Qc6+ {[%clk
0:01:32.8]} 54. Kf1 {[%clk 0:00:26.2]} 54... Kf5 {[%clk 0:01:33.3]} 55. Ke2
{[%clk 0:00:26.3]} 55... Qc2+ {[%clk 0:01:33.1]} 56. Ke1 {[%clk 0:00:26.4]}
56... Qb2 {[%clk 0:01:29.5]} 57. Kf1 {[%clk 0:00:26.2]} 57... Kg5 {[%clk
0:01:30]} 58. Ke1 {[%clk 0:00:26.3]} 58... h4 {[%clk 0:01:30.4]} 59. gxh4+
{[%clk 0:00:26.8]} 59... Kxh4 {[%clk 0:01:31.3]} 60. Kf1 {[%clk 0:00:27]} 60...
Qb1+ {[%clk 0:01:30.2]} 61. Kg2 {[%clk 0:00:27.2]} 61... Qd1 {[%clk 0:01:29.3]}
62. Rg3 {[%clk 0:00:26.1]} 62... Kg5 {[%clk 0:01:29.7]} 63. Re3 {[%clk
0:00:25.2]} 63... Kf4 {[%clk 0:01:30]} 64. Rg3 {[%clk 0:00:25.2]} 64... Qd5+
{[%clk 0:01:30.5]} 65. Kf1 {[%clk 0:00:25.1]} 65... Qh1+ {[%clk 0:01:26.8]} 66.
Ke2 {[%clk 0:00:25.1]} 66... Kf5 {[%clk 0:01:26]} 67. Re3 {[%clk 0:00:23.7]}
67... Qb1 {[%clk 0:01:23.7]} 68. Rg3 {[%clk 0:00:23.4]} 68... Qc2+ {[%clk
0:01:24]} 69. Kf1 {[%clk 0:00:23.5]} 69... Qd1+ {[%clk 0:01:24.5]} 70. Kg2
{[%clk 0:00:23.6]} 70... Ke4 {[%clk 0:01:25]} 71. Re3+ {[%clk 0:00:23.5]} 71...
Kd4 {[%clk 0:01:25.5]} 72. Rg3 {[%clk 0:00:23.7]} 72... Kc5 {[%clk 0:01:26]} 73.
Re3 {[%clk 0:00:23.1]} 73... Kb4 {[%clk 0:01:26.3]} 74. Rg3 {[%clk 0:00:22.8]}
74... Ka3 {[%clk 0:01:26.5]} 75. Rd3 {[%clk 0:00:22.6]} 75... Kb2 {[%clk
0:01:27.1]} 76. Rxd1 {[%clk 0:00:18.4]} 1-0

[Event "*** Titled Tuesday Blitz"]
[Site "Chess.com"]
[Date "2020.12.01"]
[Round "4"]
[White "andrzej"]
[Black "Agoking701"]
[Result "1-0"]
[WhiteElo "2382"]
[BlackElo "2216"]
[TimeControl "180+1"]
[EndTime "10:38:53 PST"]
[Termination "andrzej won by checkmate"]

1. e4 {[%clk 0:03:00.9]} 1... c5 {[%clk 0:02:57.2]} 2. Nf3 {[%clk 0:03:01.3]}
2... Nc6 {[%clk 0:02:56.7]} 3. d4 {[%clk 0:03:01.7]} 3... cxd4 {[%clk
0:02:57.2]} 4. Nxd4 {[%clk 0:03:02.6]} 4... Nf6 {[%clk 0:02:57.7]} 5. Nc3 {[%clk
0:03:02.8]} 5... d6 {[%clk 0:02:53.8]} 6. Bg5 {[%clk 0:03:02.1]} 6... e6 {[%clk
0:02:51.1]} 7. Qd2 {[%clk 0:03:01.3]} 7... a6 {[%clk 0:02:46.1]} 8. O-O-O {[%clk
0:03:00.7]} 8... Be7 {[%clk 0:02:43.3]} 9. f4 {[%clk 0:02:59.5]} 9... Bd7 {[%clk
0:02:39.5]} 10. Kb1 {[%clk 0:02:47.9]} 10... b5 {[%clk 0:02:33.9]} 11. Bxf6
{[%clk 0:02:28.1]} 11... gxf6 {[%clk 0:02:32.7]} 12. Nxc6 {[%clk 0:02:19.1]}
12... Bxc6 {[%clk 0:02:31.7]} 13. Bd3 {[%clk 0:02:19.7]} 13... Qb6 {[%clk
0:02:19.6]} 14. Rhf1 {[%clk 0:02:07.1]} 14... b4 {[%clk 0:02:08.5]} 15. Ne2
{[%clk 0:02:07.1]} 15... a5 {[%clk 0:02:08.4]} 16. f5 {[%clk 0:02:01.4]} 16...
a4 {[%clk 0:01:59.1]} 17. fxe6 {[%clk 0:02:01.1]} 17... fxe6 {[%clk 0:02:00]}
18. Nf4 {[%clk 0:02:01.6]} 18... e5 {[%clk 0:01:08.5]} 19. Nh5 {[%clk
0:01:51.7]} 19... Rf8 {[%clk 0:00:38.8]} 20. Ng7+ {[%clk 0:01:47.3]} 20... Kd7
{[%clk 0:00:29.6]} 21. Bc4 {[%clk 0:01:29.7]} 21... Rae8 {[%clk 0:00:19.1]} 22.
Bd5 {[%clk 0:01:19.4]} 22... Bd8 {[%clk 0:00:19.3]} 23. Nf5 {[%clk 0:01:11.3]}
23... Bc7 {[%clk 0:00:17.6]} 24. Qd3 {[%clk 0:01:01.1]} 24... Bb5 {[%clk
0:00:17.2]} 25. Bc4 {[%clk 0:00:56.7]} 25... Rb8 {[%clk 0:00:12.6]} 26. Nxd6
{[%clk 0:00:46.1]} 26... Bxd6 {[%clk 0:00:06.1]} 27. Bxb5+ {[%clk 0:00:45.6]}
27... Kc7 {[%clk 0:00:05.7]} 28. Qc4+ {[%clk 0:00:45.1]} 28... Qc5 {[%clk
0:00:04.9]} 29. Qxc5+ {[%clk 0:00:37.9]} 29... Bxc5 {[%clk 0:00:05.8]} 30. Bxa4
{[%clk 0:00:38.5]} 30... Bd4 {[%clk 0:00:05.2]} 31. Bb3 {[%clk 0:00:37.7]} 31...
Rb6 {[%clk 0:00:03.4]} 32. Rf3 {[%clk 0:00:37.3]} 32... Rd8 {[%clk 0:00:03.1]}
33. Rdf1 {[%clk 0:00:37.1]} 33... Rbd6 {[%clk 0:00:02.2]} 34. g4 {[%clk
0:00:35.9]} 34... Bc5 {[%clk 0:00:01.6]} 35. c3 {[%clk 0:00:34.3]} 35... Rd2
{[%clk 0:00:01.6]} 36. Rxf6 {[%clk 0:00:29.2]} 36... bxc3 {[%clk 0:00:02.5]} 37.
bxc3 {[%clk 0:00:28.6]} 37... Rxh2 {[%clk 0:00:03]} 38. Rf7+ {[%clk 0:00:27.6]}
38... Kb6 {[%clk 0:00:02.7]} 39. R1f6+ {[%clk 0:00:27.4]} 39... Ka5 {[%clk
0:00:03]} 40. Rc6 {[%clk 0:00:21.5]} 40... Ba3 {[%clk 0:00:02.2]} 41. Ra7+
{[%clk 0:00:18.4]} 41... Kb5 {[%clk 0:00:02.4]} 42. Ba4# {[%clk 0:00:18.9]} 1-0

[Event "*** Titled Tuesday Blitz"]
[Site "Chess.com"]
[Date "2020.12.01"]
[Round "4"]
[White "nonsopolo1"]
[Black "KetiTsatsalashvili"]
[Result "1-0"]
[WhiteElo "2204"]
[BlackElo "2330"]
[TimeControl "180+1"]
[EndTime "10:38:54 PST"]
[Termination "nonsopolo1 won by resignation"]

1. e4 {[%clk 0:03:00.3]} 1... c5 {[%clk 0:02:59.5]} 2. Nf3 {[%clk 0:02:59.9]}
2... d6 {[%clk 0:02:59.9]} 3. d4 {[%clk 0:02:59.9]} 3... cxd4 {[%clk 0:03:00.8]}
4. Nxd4 {[%clk 0:03:00.7]} 4... Nf6 {[%clk 0:03:01.4]} 5. Nc3 {[%clk 0:03:00.8]}
5... Nc6 {[%clk 0:03:01.7]} 6. Bg5 {[%clk 0:02:58.7]} 6... Bd7 {[%clk
0:02:59.9]} 7. Qd2 {[%clk 0:02:58.5]} 7... Rc8 {[%clk 0:02:59.1]} 8. Be2 {[%clk
0:02:55.4]} 8... Nxd4 {[%clk 0:02:51.9]} 9. Qxd4 {[%clk 0:02:55]} 9... a6 {[%clk
0:02:51.8]} 10. O-O {[%clk 0:02:52]} 10... Qc7 {[%clk 0:02:46.4]} 11. Rad1
{[%clk 0:02:48.3]} 11... Qc5 {[%clk 0:02:44.3]} 12. Qd2 {[%clk 0:02:46.8]} 12...
Bc6 {[%clk 0:02:38.4]} 13. Bd3 {[%clk 0:02:34.6]} 13... e6 {[%clk 0:02:32.7]}
14. Kh1 {[%clk 0:02:32.1]} 14... Be7 {[%clk 0:02:24.4]} 15. a3 {[%clk
0:02:28.8]} 15... O-O {[%clk 0:02:21.1]} 16. Be3 {[%clk 0:02:27.3]} 16... Qh5
{[%clk 0:02:07.3]} 17. f4 {[%clk 0:02:17.7]} 17... d5 {[%clk 0:02:02]} 18. e5
{[%clk 0:02:12.4]} 18... Ng4 {[%clk 0:01:42.8]} 19. Bg1 {[%clk 0:02:05.9]} 19...
Bc5 {[%clk 0:01:36.2]} 20. h3 {[%clk 0:01:53.3]} 20... Bxg1 {[%clk 0:01:32.2]}
21. Kxg1 {[%clk 0:01:46.9]} 21... Nh6 {[%clk 0:01:24.9]} 22. Qf2 {[%clk
0:01:43.7]} 22... f5 {[%clk 0:01:08.3]} 23. Ne2 {[%clk 0:01:39.9]} 23... Bd7
{[%clk 0:01:02.6]} 24. Nd4 {[%clk 0:01:32]} 24... Nf7 {[%clk 0:00:57.6]} 25. Rc1
{[%clk 0:01:29.8]} 25... b5 {[%clk 0:00:54.2]} 26. a4 {[%clk 0:01:26.4]} 26...
bxa4 {[%clk 0:00:52.6]} 27. Bxa6 {[%clk 0:01:24.5]} 27... Ra8 {[%clk 0:00:51.8]}
28. Bd3 {[%clk 0:01:23.3]} 28... Kh8 {[%clk 0:00:51.2]} 29. c4 {[%clk
0:01:21.1]} 29... dxc4 {[%clk 0:00:48.6]} 30. Bxc4 {[%clk 0:01:20.7]} 30... Qh6
{[%clk 0:00:43.2]} 31. Rfd1 {[%clk 0:01:12.1]} 31... Rfd8 {[%clk 0:00:41.3]} 32.
Qf3 {[%clk 0:01:04.3]} 32... g5 {[%clk 0:00:40.1]} 33. Ne2 {[%clk 0:00:58.7]}
33... Rab8 {[%clk 0:00:35.4]} 34. Qa3 {[%clk 0:00:44]} 34... gxf4 {[%clk
0:00:33.7]} 35. Qe7 {[%clk 0:00:43.5]} 35... Nxe5 {[%clk 0:00:33.9]} 36. Nd4
{[%clk 0:00:16.4]} 36... f3 {[%clk 0:00:30.3]} 37. Nxe6 {[%clk 0:00:14.1]} 37...
Qg6 {[%clk 0:00:21.4]} 38. Nf4 {[%clk 0:00:12.3]} 38... Qb6+ {[%clk 0:00:16.4]}
39. Kh2 {[%clk 0:00:11.7]} 39... fxg2 {[%clk 0:00:15.6]} 40. Qxe5+ {[%clk
0:00:11]} 1-0

[Event "*** Titled Tuesday Blitz"]
[Site "Chess.com"]
[Date "2020.12.01"]
[Round "4"]
[White "hansen"]
[Black "LionTheLeon_06"]
[Result "1-0"]
[WhiteElo "2921"]
[BlackElo "2631"]
[TimeControl "180+1"]
[EndTime "10:38:55 PST"]
[Termination "hansen won by resignation"]

1. e4 {[%clk 0:03:00.9]} 1... c5 {[%clk 0:02:58.2]} 2. Nf3 {[%clk 0:03:00.8]}
2... d6 {[%clk 0:02:58.7]} 3. d4 {[%clk 0:02:27.6]} 3... cxd4 {[%clk 0:02:58.2]}
4. Nxd4 {[%clk 0:02:28.5]} 4... Nf6 {[%clk 0:02:58.5]} 5. Nc3 {[%clk 0:02:28.8]}
5... a6 {[%clk 0:02:59]} 6. h3 {[%clk 0:02:29.2]} 6... e6 {[%clk 0:02:54.9]} 7.
g4 {[%clk 0:02:20.4]} 7... h6 {[%clk 0:02:54.9]} 8. g5 {[%clk 0:02:18.6]} 8...
hxg5 {[%clk 0:02:53.5]} 9. Bxg5 {[%clk 0:02:19.5]} 9... Nbd7 {[%clk 0:02:44.1]}
10. Qd2 {[%clk 0:02:18.3]} 10... b5 {[%clk 0:02:42.9]} 11. a3 {[%clk 0:02:17.4]}
11... Qc7 {[%clk 0:02:39.4]} 12. O-O-O {[%clk 0:02:16.5]} 12... Bb7 {[%clk
0:02:39]} 13. f3 {[%clk 0:02:16.1]} 13... Ne5 {[%clk 0:02:39]} 14. h4 {[%clk
0:02:09.9]} 14... Be7 {[%clk 0:02:38.7]} 15. Rg1 {[%clk 0:02:09.5]} 15... Rc8
{[%clk 0:02:29.8]} 16. Kb1 {[%clk 0:02:09]} 16... g6 {[%clk 0:02:09.2]} 17. Be2
{[%clk 0:02:04.6]} 17... Nc4 {[%clk 0:02:08.8]} 18. Bxc4 {[%clk 0:02:04.2]}
18... Qxc4 {[%clk 0:02:09.7]} 19. Nb3 {[%clk 0:01:58.6]} 19... d5 {[%clk
0:01:40.2]} 20. Qf4 {[%clk 0:01:26.5]} 20... Nh5 {[%clk 0:01:36.6]} 21. Qe5
{[%clk 0:01:27]} 21... f6 {[%clk 0:01:24.8]} 22. Bxf6 {[%clk 0:01:23.1]} 22...
Nxf6 {[%clk 0:01:19.7]} 23. Rxg6 {[%clk 0:01:23.3]} 23... Kf7 {[%clk 0:01:11.6]}
24. Rdg1 {[%clk 0:00:55]} 24... Rcg8 {[%clk 0:01:11]} 25. R6g5 {[%clk 0:00:35]}
25... dxe4 {[%clk 0:00:47.7]} 26. fxe4 {[%clk 0:00:32.8]} 26... Bxe4 {[%clk
0:00:45.6]} 27. Nd2 {[%clk 0:00:19.9]} 27... Qc5 {[%clk 0:00:40.3]} 28. Qf4
{[%clk 0:00:12.4]} 28... Bf5 {[%clk 0:00:36.3]} 29. Nf3 {[%clk 0:00:10.8]} 29...
Bd6 {[%clk 0:00:33.8]} 30. Qd2 {[%clk 0:00:07.7]} 30... Bb8 {[%clk 0:00:18.1]}
31. Re1 {[%clk 0:00:03.8]} 31... Ke7 {[%clk 0:00:11.2]} 32. Nd4 {[%clk
0:00:02.4]} 32... Rxg5 {[%clk 0:00:09.5]} 33. hxg5 {[%clk 0:00:02.5]} 33... Ng4
{[%clk 0:00:07.9]} 34. b4 {[%clk 0:00:01.3]} 34... Bxc2+ {[%clk 0:00:04.5]} 35.
Kxc2 {[%clk 0:00:02.2]} 35... Qc4 {[%clk 0:00:04.1]} 36. Nf5+ {[%clk 0:00:02.4]}
36... Kf8 {[%clk 0:00:03.9]} 37. Qd8+ {[%clk 0:00:02.2]} 37... Kf7 {[%clk
0:00:03.6]} 38. Qxh8 {[%clk 0:00:02.3]} 38... exf5 {[%clk 0:00:03.7]} 39. Qh7+
{[%clk 0:00:02.6]} 39... Kf8 {[%clk 0:00:03.4]} 40. Qe7+ {[%clk 0:00:02.8]}
40... Kg8 {[%clk 0:00:04]} 41. Qe8+ {[%clk 0:00:03.2]} 41... Kg7 {[%clk
0:00:04.1]} 42. Re7+ {[%clk 0:00:03.9]} 1-0